Workbook

Sheet base
B2: Guida Alberghiera Professionale | E2: Calcolo delle calorie in base alle diverse pietanze
A4: Dieta Personale | F4: Fabbisogno giornaliero | G4: calorie | I4: glicidi | J4: =SUM(E6*53%) -> 0 | L4: Calcola menu
F5: Differenza | G5: =SUM(E6-H4) -> 0 | I5: protidoi | J5: =SUM(E6*17%) -> 0
A6: gr. | B6: Descrizione delle portate | C6: calorie | E6: =SUMPRODUCT(A16:A267,D16:D267) -> 0 | I6: lipidi | J6: =SUM(E6*30%) -> 0
B7: pietanze | E7: calorie | F7: Tipo di alimento
B16: Bresaola | C16: 160 | D16: =SUM(C16/100) -> 1.6 | E16: =SUM(A16*D16) -> 0 | F16: insaccati | I16: Scarto nella preparazione o sbucciatura
B17: Lardo | C17: 891 | D17: =SUM(C17/100) -> 8.91 | E17: 0 | F17: insaccati | I17: Alimento | J17: Netto | K17: Lordo
B18: Lingua di bovino | C18: 240 | D18: 2.4 | E18: 0 | F18: insaccati | I18: Acciuga | J18: 72 | K18: 96
B19: Maiale (grasso) | C19: 280 | D19: 2.8 | E19: 0 | F19: insaccati | I19: Aglio | J19: 30 | K19: 41
B20: Maiale (magro) | C20: 141 | D20: 1.41 | E20: 0 | F20: insaccati | I20: Albicocche | J20: 25 | K20: 28
B21: Mortadella di suino | C21: 315 | D21: 3.15 | E21: 0 | F21: insaccati | I21: Ananas | J21: 22 | K21: 40
B22: Pancetta di maiale | C22: 661 | D22: 6.61 | E22: 0 | F22: insaccati | I22: Anatra | J22: 110 | K22: 160
B23: Prosciutto cotto | C23: 215 | D23: 2.15 | E23: 0 | F23: insaccati | I23: Anguilla | J23: 175 | K23: 250
B24: Prosciutto cotto magro | C24: 132 | D24: 1.32 | E24: 0 | F24: insaccati | I24: Arachidi | J24: 392 | K24: 600
B25: Prosciutto crudo | C25: 370 | D25: 3.7 | E25: 0 | F25: insaccati | I25: Arance | J25: 27 | K25: 34
B26: Prosciutto crudo sgrassato | C26: 215 | D26: 1.4 | E26: 0 | F26: insaccati | I26: Astice | J26: 30 | K26: 90
B27: prosciutto non grasso | C27: 3 | D27: 2.5 | E27: 0 | F27: insaccati | I27: Avocado | J27: 176 | K27: 231
B28: Salame | C28: 370 | D28: =SUM(C28/100) -> 3.7 | E28: 0 | F28: insaccati | I28: Banane | J28: 44 | K28: 66
B29: Salsiccia | C29: 400 | D29: 4 | E29: 0 | F29: insaccati | I29: Barbabietole | J29: 16 | K29: 20
B30: Speck | C30: 301 | D30: 3.03 | E30: 0 | F30: insaccati | I30: Calamaro | J30: 45 | K30: 68
B31: Zampone | C31: 360 | D31: 3.6 | E31: 0 | F31: insaccati | I31: Carciofi | J31: 8 | K31: 22
B32: Farina di frumento | C32: 343 | D32: 3.43 | E32: 0 | F32: farinacei | I32: Carote | J32: 30 | K32: 33
B33: Farina di grano duro | C33: 304 | D33: 3.04 | E33: 0 | F33: farinacei | I33: Carpa | J33: 70 | K33: 140
B34: Farina di mais | C34: 365 | D34: 3.65 | E34: 0 | F34: farinacei | I34: Castagne | J34: 140 | K34: 207
B35: Fiocchi d'avena | C35: 394 | D35: 3.94 | E35: 0 | F35: farinacei | I35: Cavolfiori | J35: 16 | K35: 25
B36: grissini | C36: 1 | D36: 3.62 | E36: 0 | F36: farinacei | I36: Cavoli | J36: 16 | K36: 20
B37: Grissini | C37: 435 | D37: =SUM(C37/100) -> 4.35 | E37: 0 | F37: farinacei | I37: Cernia | J37: 32 | K37: 81
B38: Lievito di birra (fresco) | C38: 56 | D38: =SUM(C38/100) -> 0.56 | E38: 0 | F38: farinacei | I38: Cetrioli | J38: 11 | K38: 14
B39: Miele | C39: 308 | D39: =SUM(C39/100) -> 3.08 | E39: 0 | F39: farinacei | I39: Cicoria | J39: 8 | K39: 10
B40: pane all'olio | C40: 1 | D40: 2.99 | E40: 0 | F40: farinacei | I40: Ciliegie | J40: 33 | K40: 38
B41: Pane comune | C41: 280 | D41: =SUM(C41/100) -> 2.8 | E41: 0 | F41: farinacei | I41: Cipolle | J41: 21 | K41: 26
B42: Pane integrale | C42: 242 | D42: =SUM(C42/100) -> 2.42 | E42: 0 | F42: farinacei | I42: Cocomero | J42: 8 | K42: 15
B43: pasta | C43: 2 | D43: 3.66 | E43: 0 | F43: farinacei | I43: Cozza | J43: 28 | K43: 84
B44: riso | C44: 2 | D44: 3.25 | E44: 0 | F44: farinacei | I44: Datteri secchi | J44: 230 | K44: 254
B45: Pasta integrale | C45: 330 | D45: =SUM(C45/100) -> 3.3 | E45: 0 | F45: farinacei | I45: Dentice | J45: 65 | K45: 100
B46: Pop corn | C46: 383 | D46: =SUM(C46/100) -> 3.83 | E46: 0 | F46: farinacei | I46: Emmenthal | J46: -
B47: Soia (germogli) | C47: 50 | D47: =SUM(C47/100) -> 0.5 | E47: 0 | F47: farinacei | I47: Fagiano | J47: 120 | K47: 144
B48: Agnello (grasso) | C48: 260 | D48: 2.6 | E48: 0 | F48: farinacei | I48: Fagiolini | J48: 16 | K48: 17
B49: Agnello (magro) | C49: 120 | D49: 1.2 | E49: 0 | F49: carni | I49: Fagiolo | J49: 42 | K49: 104
B50: Anatra | C50: 160 | D50: 1.6 | E50: 0 | F50: carni | I50: Faraona | J50: 107 | K50: 158
B51: Bovino (magro) | C51: 129 | D51: 1.29 | E51: 0 | F51: carni | I51: Fave | J51: 10 | K51: 37
B52: Bovino (semigrasso) | C52: 215 | D52: 2.15 | E52: 0 | F52: carni | I52: Fichi | J52: 35 | K52: 45
B53: Capriolo | C53: 110 | D53: 1.1 | E53: 0 | F53: carni | I53: Finocchio | J53: 5 | K53: 9
B54: Cavallo | C54: 112 | D54: 1.12 | E54: 0 | F54: carni | I54: Fragole | J54: 25 | K54: 27
B55: Ciccioli | C55: 523 | D55: 5.23 | E55: 0 | F55: carni | I55: Funghi porcini | J55: 24 | K55: 27
B56: Coniglio (grasso) | C56: 200 | D56: 2 | E56: 0 | F56: carni | I56: Gambero | J56: 32 | K56: 71
B57: Coniglio (magro) | C57: 105 | D57: 1.05 | E57: 0 | F57: carni | I57: Kaki | J57: 62 | K57: 67
B58: Coppa | C58: 398 | D58: 3.98 | E58: 0 | F58: carni | I58: Kiwi | J58: 38 | K58: 44
B59: Cotechino | C59: 450 | D59: 4.5 | E59: 0 | F59: carni | I59: Lattuga | J59: 16 | K59: 19
B60: Cotechino cotto | C60: 310 | D60: 3.1 | E60: 0 | F60: carni | I60: Limone | J60: 7 | K60: 11
B61: Faraona | C61: 158 | D61: 1.58 | E61: 0 | F61: carni | I61: Lumaca | J61: 24 | K61: 78
B62: Fegato di bovino | C62: 146 | D62: 1.46 | E62: 0 | F62: carni | I62: Mandaranci | J62: 46 | K62: 53
B63: Lepre | C63: 121 | D63: 1.21 | E63: 0 | F63: carni | I63: Mandarini | J63: 57 | K63: 72
B64: Lumaca | C64: 78 | D64: 0.78 | E64: 0 | F64: carni | I64: Mandorle | J64: 130 | K64: 542
B65: manzo | C65: 3 | D65: 1.5 | E65: 0 | F65: carni | I65: Melanzane | J65: 13 | K65: 15
B66: Oca | C66: 373 | D66: =SUM(C66/100) -> 3.73 | E66: 0 | F66: carni | I66: Mele | J66: 32 | K66: 45
B67: Pollo (petto) | C67: 100 | D67: =SUM(C67/100) -> 1 | E67: 0 | F67: carni | I67: Melone | J67: 16 | K67: 33
B68: pollo arrosto | C68: 3 | D68: 2 | E68: 0 | F68: carni | I68: Merluzzo | J68: 52 | K68: 71
B69: pollo lessso | C69: 3 | D69: 1.8 | E69: 0 | F69: carni | I69: Nespole | J69: 19 | K69: 28
B70: Rana | C70: 64 | D70: =SUM(C70/100) -> 0.64 | E70: 0 | F70: carni | I70: Nocciole | J70: 270 | K70: 625
B71: Tacchino (petto) | C71: 134 | D71: =SUM(C71/100) -> 1.34 | E71: 0 | F71: carni | I71: Noce di cocco | J71: 240 | K71: 351
B72: Trippa | C72: 108 | D72: =SUM(C72/100) -> 1.08 | E72: 0 | F72: carni | I72: Noci | J72: 264 | K72: 653
B73: vitello | C73: 3 | D73: 1.5 | E73: 0 | F73: carni | I73: Olive nere | J73: 173 | K73: 234
B74: Vitello (magro) | C74: 92 | D74: =SUM(C74/100) -> 0.92 | E74: 0 | F74: carni | I74: Olive verdi | J74: 113 | K74: 142
B75: Vitello (semigrasso) | C75: 144 | D75: 1.44 | E75: 0 | F75: carni | I75: Orata | J75: 63 | K75: 90
B76: Acciuga | C76: 96 | D76: 0.96 | E76: 0 | F76: carni | I76: Palombo | J76: 54 | K76: 80
B77: Acciughe sott'olio | C77: 205 | D77: 2.05 | E77: 0 | F77: carni | I77: Patate | J77: 71 | K77: 85
B78: Anguilla | C78: 250 | D78: 2.5 | E78: 0 | F78: pesce | I78: Peperoni | J78: 17 | K78: 22
B79: Astice | C79: 90 | D79: 0.9 | E79: 0 | F79: pesce | I79: Pere | J79: 30 | K79: 41
B80: Calamaro | C80: 68 | D80: 0.68 | E80: =SUM(A80*D80) -> 0 | F80: pesce | I80: Pesche | J80: 20 | K80: 27
B81: Carpa | C81: 140 | D81: 1.4 | E81: 0 | F81: pesce | I81: Piselli | J81: 38 | K81: 76
B82: Cernia | C82: 81 | D82: 0.81 | E82: 0 | F82: pesce | I82: Polpo | J82: 52 | K82: 57
B83: Cozza | C83: 84 | D83: 0.84 | E83: 0 | F83: pesce | I83: Pompelmi | J83: 18 | K83: 26
B84: Dentice | C84: 100 | D84: 1 | E84: 0 | F84: pesce | I84: Prezzemolo | J84: 16 | K84: 20
B85: Fagiano | C85: 144 | D85: 1.44 | E85: 0 | F85: pesce | I85: Prugne | J85: 36 | K85: 42
B86: Gambero | C86: 71 | D86: 0.71 | E86: 0 | F86: pesce | I86: Radicchio | J86: 9 | K86: 13
B87: Merluzzo | C87: 71 | D87: 0.71 | E87: 0 | F87: pesce | I87: Rana | J87: 22 | K87: 64
B88: Orata | C88: 90 | D88: 0.9 | E88: 0 | F88: pesce | I88: Rape | J88: 13 | K88: 18
B89: Palombo | C89: 80 | D89: 0.8 | E89: 0 | F89: pesce | I89: Rucola | J89: 10 | K89: 25
B90: Pesce spada fresco | C90: 109 | D90: 1.59 | E90: 0 | F90: pesce | I90: Salmone | J90: 144 | K90: 180
B91: Polpo | C91: 57 | D91: 0.57 | E91: 0 | F91: pesce | I91: Sardine sott'olio | J91: 160 | K91: 198
B92: Salmone | C92: 180 | D92: 1.8 | E92: 0 | F92: pesce | I92: Scarola | J92: 9 | K92: 15
B93: Salmone affumicato | C93: 142 | D93: 1.42 | E93: 0 | F93: pesce | I93: Sedano | J93: 16 | K93: 20
B94: Salmone al naturale | C94: 161 | D94: 1.61 | E94: 0 | F94: pesce | I94: Seppia | J94: 36 | K94: 72
B95: Sarago | C95: 102 | D95: 1.02 | E95: 0 | F95: pesce | I95: Sgombro sott'olio | J95: 180 | K95: 200
B96: Sardine sott'olio | C96: 198 | D96: 1.98 | E96: 0 | F96: pesce | I96: Sogliola | J96: 44 | K96: 86
B97: Seppia | C97: 72 | D97: 0.72 | E97: 0 | F97: pesce | I97: Spinaci | J97: 25 | K97: 31
B98: Sgombro sott'olio | C98: 200 | D98: 2 | E98: 0 | F98: pesce | I98: Tonno | J98: 140 | K98: 158
B99: Sogliola | C99: 86 | D99: 0.86 | E99: 0 | F99: pesce | I99: Triglia | J99: 75 | K99: 123
B100: sogliola o trota | C100: 3 | D100: 0.84 | E100: 0 | F100: pesce | I100: Trota | J100: 48 | K100: 86
B101: Tonno | C101: 158 | D101: =SUM(C101/100) -> 1.58 | E101: 0 | F101: pesce | I101: Uovo | J101: 141 | K101: 156
B102: Tonno al naturale | C102: 134 | D102: 1.34 | E102: 0 | F102: pesce | I102: Uva | J102: 57 | K102: 61
B103: Triglia | C103: 123 | D103: 1.23 | E103: 0 | F103: pesce | I103: Vongole | J103: 18 | K103: 72
B104: Trota | C104: 86 | D104: 0.86 | E104: 0 | F104: pesce | I104: Zucca | J104: 14 | K104: 18
B105: Vongole | C105: 72 | D105: 0.72 | E105: 0 | F105: pesce | I105: Zucchine | J105: 9 | K105: 11
B106: Ceci | C106: 334 | D106: 3.34 | E106: 0 | F106: legumi
B107: Fave | C107: 37 | D107: 0.37 | E107: 0 | F107: legumi
B108: Funghi porcini | C108: 27 | D108: 0.27 | E108: 0 | F108: legumi
B109: Lenticchie | C109: 325 | D109: 3.25 | E109: 0 | F109: legumi
B110: Olive nere | C110: 234 | D110: 2.34 | E110: 0 | F110: legumi
B111: Olive verdi | C111: 142 | D111: 1.42 | E111: 0 | F111: legumi
B112: Patate | C112: 85 | D112: 0.85 | E112: 0 | F112: legumi
B113: Piselli | C113: 76 | D113: 0.76 | E113: 0 | F113: legumi
B114: Pomodori | C114: 18 | D114: 0.18 | E114: 0 | F114: legumi
B115: asparagi | C115: 4 | D115: 0.5 | E115: 0 | F115: verdure
B116: Barbabietole | C116: 20 | D116: =SUM(C116/100) -> 0.2 | E116: 0 | F116: verdure
B117: carciofi | C117: 4 | D117: 0.5 | E117: 0 | F117: verdure
B118: Carote | C118: 33 | D118: =SUM(C118/100) -> 0.33 | E118: 0 | F118: verdure
B119: cavolfiore | C119: 4 | D119: 0.5 | E119: 0 | F119: verdure
B120: Cavoli | C120: 20 | D120: =SUM(C120/100) -> 0.2 | E120: 0 | F120: verdure
B121: cetrioli | C121: 4 | D121: 0.14 | E121: 0 | F121: verdure
B122: Cicoria | C122: 10 | D122: =SUM(C122/100) -> 0.1 | E122: 0 | F122: verdure
B123: cipolle | C123: 4 | D123: 0.2 | E123: 0 | F123: verdure
B124: crauti | C124: 4 | D124: 0.2 | E124: 0 | F124: verdure
B125: fagiolini verdi | C125: 4 | D125: 0.2 | E125: 0 | F125: verdure
B126: Fagiolo | C126: 104 | D126: =SUM(C126/100) -> 1.04 | E126: 0 | F126: verdure
B127: finocchi | C127: 4 | D127: 0.09 | E127: 0 | F127: verdure
B128: insalata riccia | C128: 4 | D128: 0.2 | E128: 0 | F128: verdure
B129: lattuga | C129: 4 | D129: 0.2 | E129: 0 | F129: verdure
B130: melanzane | C130: 4 | D130: 0.2 | E130: 0 | F130: verdure
B131: patate | C131: 4 | D131: 0.7 | E131: 0 | F131: verdure
B132: Peperoni | C132: 22 | D132: =SUM(C132/100) -> 0.22 | E132: 0 | F132: verdure
B133: pomodori | C133: 4 | D133: 0.17 | E133: 0 | F133: verdure
B134: Prezzemolo | C134: 20 | D134: =SUM(C134/100) -> 0.2 | E134: 0 | F134: verdure
B135: Radicchio | C135: 13 | D135: =SUM(C135/100) -> 0.13 | E135: 0 | F135: verdure
B136: rape | C136: 4 | D136: 0.5 | E136: 0 | F136: verdure
B137: Rosmarino | C137: 96 | D137: =SUM(C137/100) -> 0.96 | E137: 0 | F137: verdure
B138: Rucola | C138: 25 | D138: =SUM(C138/100) -> 0.25 | E138: 0 | F138: verdure
B139: Scarola | C139: 15 | D139: =SUM(C139/100) -> 0.15 | E139: 0 | F139: verdure
B140: sedano | C140: 4 | D140: 0.2 | E140: 0 | F140: verdure
B141: spinaci | C141: 4 | D141: 0.5 | E141: 0 | F141: verdure
B142: Zucca | C142: 18 | D142: =SUM(C142/100) -> 0.18 | E142: 0 | F142: verdure
B143: zucchine | C143: 4 | D143: 0.2 | E143: 0 | F143: verdure
B144: Zucchine | C144: 11 | D144: =SUM(C144/100) -> 0.11 | E144: =SUM(A144*D144) -> 0 | F144: verdure
B145: Brie | C145: 319 | D145: =SUM(C145/100) -> 3.19 | E145: 0 | F145: formaggi e latticini
B146: Caciocavallo | C146: 439 | D146: =SUM(C146/100) -> 4.39 | E146: 0 | F146: formaggi e latticini
B147: Camembert | C147: 297 | D147: =SUM(C147/100) -> 2.97 | E147: 0 | F147: formaggi e latticini
B148: crescenza | C148: 5 | D148: 2.56 | E148: 0 | F148: formaggi e latticini
B149: Emmenthal | C149: 403 | D149: =SUM(C149/100) -> 4.03 | E149: 0 | F149: formaggi e latticini
B150: fontina | C150: 5 | D150: 3.25 | E150: 0 | F150: formaggi e latticini
B151: Fontina | C151: 343 | D151: =SUM(C151/100) -> 3.43 | E151: 0 | F151: formaggi e latticini
B152: formaggio emmenthal | C152: 5 | D152: 3.25 | E152: 0 | F152: formaggi e latticini
B153: Gorgonzola | C153: 359 | D153: =SUM(C153/100) -> 3.59 | E153: 0 | F153: formaggi e latticini
B154: Grana | C154: 381 | D154: 3.81 | E154: 0 | F154: formaggi e latticini
B155: Groviera | C155: 388 | D155: 3.88 | E155: 0 | F155: formaggi e latticini
B156: Latte intero | C156: 61 | D156: 0.61 | E156: 0 | F156: formaggi e latticini
B157: Latte parz. scremato | C157: 49 | D157: 0.49 | E157: 0 | F157: formaggi e latticini
B158: Latte scremato | C158: 36 | D158: 0.36 | E158: 0 | F158: formaggi e latticini
B159: Mozzarella | C159: 243 | D159: 2.43 | E159: 0 | F159: formaggi e latticini
B160: Pecorino | C160: 366 | D160: 3.66 | E160: 0 | F160: formaggi e latticini
B161: Provolone | C161: 374 | D161: 3.74 | E161: 0 | F161: formaggi e latticini
B162: Ricotta di mucca | C162: 136 | D162: 1.36 | E162: 0 | F162: formaggi e latticini
B163: Robiola | C163: 310 | D163: 3.1 | E163: 0 | F163: formaggi e latticini
B164: Scamorza | C164: 209 | D164: 2.09 | E164: 0 | F164: formaggi e latticini
B165: Yogurt (intero) | C165: 63 | D165: 0.63 | E165: 0 | F165: formaggi e latticini
B166: Yogurt (magro) | C166: 47 | D166: 0.47 | E166: 0 | F166: formaggi e latticini
B167: albicocche | C167: 6 | D167: 0.5 | E167: 0 | F167: frutta
B168: Albicocche | C168: 28 | D168: =SUM(C168/100) -> 0.28 | E168: 0 | F168: frutta
B169: Ananas | C169: 40 | D169: =SUM(C169/100) -> 0.4 | E169: 0 | F169: frutta
B170: Arachidi | C170: 600 | D170: =SUM(C170/100) -> 6 | E170: 0 | F170: frutta
B171: arance | C171: 6 | D171: 0.5 | E171: 0 | F171: frutta
B172: Arance | C172: 34 | D172: =SUM(C172/100) -> 0.34 | E172: 0 | F172: frutta
B173: Avocado | C173: 231 | D173: =SUM(C173/100) -> 2.31 | E173: 0 | F173: frutta
B174: Banane | C174: 66 | D174: =SUM(C174/100) -> 0.66 | E174: 0 | F174: frutta
B175: cachi | C175: 6 | D175: 0.75 | E175: 0 | F175: frutta
B176: Castagne | C176: 207 | D176: =SUM(C176/100) -> 2.07 | E176: 0 | F176: frutta
B177: ciliegie | C177: 6 | D177: 0.5 | E177: 0 | F177: frutta
B178: Ciliegie | C178: 38 | D178: =SUM(C178/100) -> 0.38 | E178: 0 | F178: frutta
B179: cocomero | C179: 6 | D179: 0.5 | E179: 0 | F179: frutta
B180: Datteri secchi | C180: 254 | D180: =SUM(C180/100) -> 2.54 | E180: 0 | F180: frutta
B181: fichi secchi | C181: 6 | D181: 0.75 | E181: 0 | F181: frutta
B182: Fichi | C182: 45 | D182: =SUM(C182/100) -> 0.45 | E182: 0 | F182: frutta
B183: Fragole | C183: 27 | D183: 0.27 | E183: 0 | F183: frutta
B184: Kaki | C184: 67 | D184: 0.67 | E184: 0 | F184: frutta
B185: Kiwi | C185: 44 | D185: 0.44 | E185: 0 | F185: frutta
B186: Lamponi | C186: 34 | D186: 0.34 | E186: 0 | F186: frutta
B187: Limone | C187: 11 | D187: 0.11 | E187: 0 | F187: frutta
B188: Mandaranci | C188: 53 | D188: 0.53 | E188: 0 | F188: frutta
B189: Mandarini | C189: 72 | D189: 0.72 | E189: 0 | F189: frutta
B190: Mandorle | C190: 542 | D190: =SUM(C190/100) -> 5.42 | E190: 0 | F190: frutta
B191: Mele | C191: 45 | D191: =SUM(C191/100) -> 0.45 | E191: 0 | F191: frutta
B192: mele | C192: 6 | D192: 0.5 | E192: 0 | F192: frutta
B193: Melone | C193: 33 | D193: =SUM(C193/100) -> 0.33 | E193: 0 | F193: frutta
B194: Macedonia di frutta | C194: 6 | D194: 0.56 | E194: 0 | F194: frutta
B195: More | C195: 30 | D195: =SUM(C195/100) -> 0.3 | E195: 0 | F195: frutta
B196: Nespole | C196: 28 | D196: 0.28 | E196: 0 | F196: frutta
B197: Nocciole | C197: 625 | D197: 6.25 | E197: 0 | F197: frutta
B198: Noce di cocco | C198: 351 | D198: 3.51 | E198: 0 | F198: frutta
B199: Noci | C199: 653 | D199: 6.53 | E199: 0 | F199: frutta
B200: Pere | C200: 41 | D200: 0.41 | E200: 0 | F200: frutta
B201: Cocco | C201: 6 | D201: 0.36 | E201: 0 | F201: frutta
B202: Pesche | C202: 27 | D202: 0.24 | E202: 0 | F202: frutta
B203: Fichi d'india | C203: 6 | D203: 0.53 | E203: 0 | F203: frutta
B204: Pompelmi | C204: 26 | D204: =SUM(C204/100) -> 0.26 | E204: 0 | F204: frutta
B205: Prugne | C205: 42 | D205: =SUM(C205/100) -> 0.42 | E205: 0 | F205: frutta
B206: susine | C206: 6 | D206: 0.75 | E206: 0 | F206: frutta
B207: uva | C207: 6 | D207: 0.75 | E207: 0 | F207: frutta
B208: Cacao | C208: 350 | D208: =SUM(C208/100) -> 3.5 | E208: =SUM(A208*D208) -> 0 | F208: zuccheri e condimenti
B209: Cioccolato al latte | C209: 565 | D209: 5.65 | E209: 0 | F209: zuccheri e condimenti
B210: Cioccolato fondente | C210: 542 | D210: 5.42 | E210: 0 | F210: zuccheri e condimenti
... 55 more rows

Sheet dieta
A1: DIETA PERSONALE
A6: data | B6: =TODAY() -> 2022-09-27
A9: grammi | B9: alimento | D9: Calorie | E9: Totali
A11: 30 | B11: Bresaola | C11: 160 | D11: =SUM(C11/100) -> 1.6 | E11: 48
A12: 100 | B12: pasta | C12: 2 | D12: 3.66 | E12: 366
A13: 150 | B13: spinaci | C13: 4 | D13: 0.5 | E13: 75
A14: 50 | B14: Banane | C14: 66 | D14: =SUM(C14/100) -> 0.66 | E14: 33
A15: 50 | B15: Fichi | C15: 45 | D15: =SUM(C15/100) -> 0.45 | E15: 22.5
D17: Totale calorie | E17: =SUM(E10:E15) -> 544.5
